bitfinex/quotes_ETHUSD_20241006
["timestamp","ask_amount","ask_price","bid_price","bid_amount"]
[1728196369975,3.30442,2421.0,2420.7,4.61804485]
[1728196373815,3.30442,2421.0,2420.7,3.0197956]
[1728196375885,3.30469,2420.8,2420.7,2.2008956]
[1728196400676,3.30469,2420.8,2420.7,2.59597648]
[1728196400974,3.30469,2420.8,2420.7,2.2008956]
[1728196401972,3.30469,2420.8,2420.7,2.59606794]
[1728196403073,3.30469,2420.8,2420.7,2.2008956]
[1728196403288,4.044692,2420.8,2420.7,2.2008956]
[1728196403963,4.044692,2420.8,2420.7,2.59611396]
[1728196404280,4.044692,2420.8,2420.7,2.59610803]
[1728196405083,4.044692,2420.8,2420.7,2.2008956]
[1728196407384,4.044692,2420.8,2420.7,0.2008956]
[1728196407570,4.827192,2420.8,2420.7,0.2008956]
[1728196407897,4.827192,2420.8,2420.4,2.0]
[1728196407898,3.3051,2420.5,2420.4,2.0]
[1728196408187,3.3051,2420.5,2420.4,2.2011014]
[1728196441706,3.8551,2420.5,2420.4,0.2011014]
[1728196441909,3.30553,2420.2,2420.0,2.7518]
[1728196442148,3.30553,2420.2,2420.1,0.20133941]
[1728196443616,3.30529,2420.4,2420.1,0.20133941]
[1728196444020,3.30529,2420.4,2420.2,0.7518]
[1728196444433,3.30529,2420.4,2420.3,0.20131037]
[1728196444948,3.30529,2420.4,2420.3,0.20128735]
[1728196445542,3.30529,2420.4,2420.2,0.7518]
[1728196445753,3.30529,2420.4,2420.3,0.20128735]
[1728196446143,3.30529,2420.4,2420.2,0.7518]
[1728196446341,3.30529,2420.4,2420.3,0.20128735]
[1728196446652,3.30529,2420.4,2420.2,0.7518]
[1728196447052,3.30529,2420.4,2420.3,2.20128735]
[1728196447353,3.30505,2420.6,2420.3,2.20128735]
[1728196447525,3.30511,2420.5,2420.3,2.0]
[1728196447727,3.30511,2420.5,2420.4,0.20123946]
[1728196453196,3.30505,2420.6,2420.4,0.20123946]
[1728196453350,6.61009,2420.6,2420.4,0.20123946]
[1728196456594,3.30504,2420.6,2420.4,0.20123946]
[1728196456788,3.3051,2420.5,2420.4,0.20123946]
[1728196456994,6.61009,2420.6,2420.4,0.20123946]
[1728196460835,3.30504,2420.6,2420.4,0.20123946]
[1728196461195,6.61007,2420.6,2420.4,0.20123946]
[1728196461915,3.30503,2420.6,2420.4,0.20123946]
[1728196464155,3.3051,2420.5,2420.4,0.20123946]
[1728196464944,3.30503,2420.6,2420.4,0.20123946]
[1728196467144,6.61012,2420.6,2420.4,0.20123946]
[1728196467319,6.61007,2420.6,2420.4,0.20123946]
[1728196467520,3.30503,2420.6,2420.4,0.20123946]
[1728196479146,3.30503,2420.6,2420.5,0.39110965]
[1728196479337,3.30503,2420.6,2420.5,0.59223218]
[1728196480253,3.30503,2420.6,2420.5,0.20112253]
[1728196480649,3.30503,2420.6,2420.4,0.39110693]
[1728196480962,3.30503,2420.6,2420.5,0.20112253]
[1728196481372,3.30503,2420.6,2420.3,2.0]
[1728196481570,3.30503,2420.6,2420.5,0.20112253]
[1728196481728,3.30503,2420.6,2420.4,0.20117041]
[1728196481931,3.30503,2420.6,2420.5,0.20112253]
[1728196482132,3.30503,2420.6,2420.3,2.0]
[1728196482355,3.30503,2420.6,2420.4,0.39109347]
[1728196482575,3.30503,2420.6,2420.4,0.20117041]
[1728196482871,3.30503,2420.6,2420.5,0.39107954]
[1728196483075,3.30503,2420.6,2420.5,0.59218827]
[1728196484249,3.30503,2420.6,2420.5,0.20110873]
[1728196484757,3.30503,2420.6,2420.5,0.59216608]
[1728196485092,3.30503,2420.6,2420.5,0.59215687]
[1728196485299,3.30503,2420.6,2420.5,0.20109952]
[1728196485460,3.30503,2420.6,2420.5,0.59215849]
[1728196485784,3.30503,2420.6,2420.5,0.20109952]
[1728196485993,3.30503,2420.6,2420.4,0.39105434]
[1728196486211,3.30503,2420.6,2420.5,0.19436294]
[1728196486504,3.30503,2420.6,2420.3,2.0]
[1728196486796,3.30503,2420.6,2420.5,0.19436294]
[1728196486998,3.30503,2420.6,2420.4,0.19441082]
[1728196487199,3.30503,2420.6,2420.3,2.0]
[1728196487396,3.30503,2420.6,2420.5,0.19436294]
[1728196487577,3.30503,2420.6,2420.3,2.0]
[1728196487979,3.30503,2420.6,2420.4,0.19441082]
[1728196492106,3.30484,2420.7,2420.4,1.02231082]
[1728196492563,4.13704,2420.9,2420.4,1.02231082]
[1728196492763,4.550744,2420.9,2420.4,1.02231082]
[1728196493479,3.3048,2420.8,2420.4,1.02231082]
[1728196495833,3.30486,2420.7,2420.4,1.02231082]
[1728196498098,6.60977,2420.7,2420.4,1.02231082]
[1728196499089,3.30497,2420.6,2420.4,1.02231082]
[1728196509326,3.305,2420.6,2420.4,1.02231082]
[1728196510439,3.305,2420.6,2420.4,1.02134655]
[1728196511004,3.30486,2420.7,2420.4,1.02134655]
[1728196511347,6.60977,2420.7,2420.4,1.02134655]
[1728196513956,3.30486,2420.7,2420.4,1.02134655]
[1728196514250,3.30498,2420.6,2420.4,1.02134655]
[1728196520943,3.30486,2420.7,2420.4,1.02134655]
[1728196521147,6.60981,2420.7,2420.4,1.02134655]
[1728196521956,6.60976,2420.7,2420.4,1.02134655]
[1728196522417,3.30497,2420.6,2420.4,1.02134655]
[1728196523568,3.30486,2420.7,2420.4,1.02134655]
[1728196523728,3.30501,2420.6,2420.4,1.02134655]
[1728196532829,3.30501,2420.6,2420.4,0.19344655]
[1728196539972,4.11126,2420.7,2420.4,0.19344655]
[1728196540165,3.3051,2420.5,2420.4,0.19344655]
[1728196546484,3.3051,2420.5,2420.4,0.58480976]
[1728196547575,4.11126,2420.7,2420.4,0.58480976]
[1728196547915,7.41616,2420.7,2420.5,0.39136321]
[1728196548115,7.41616,2420.7,2420.6,0.39136321]
[1728196548283,7.41616,2420.7,2420.6,0.58565302]
[1728196548912,4.11126,2420.7,2420.6,0.58565302]
[1728196549479,4.11126,2420.7,2420.6,0.19428981]
[1728196549719,4.11126,2420.7,2420.6,0.39137601]
[1728196549885,4.11126,2420.7,2420.6,0.58566352]
[1728196550085,4.852856,2420.7,2420.6,0.58566352]
[1728196552822,4.852856,2420.7,2420.6,0.58564036]
[1728196556512,4.852856,2420.7,2420.6,0.19428751]
[1728196556721,4.852856,2420.7,2420.6,0.58561298]
[1728196556880,4.852856,2420.7,2420.6,0.39132547]
[1728196557241,4.852856,2420.7,2420.6,0.58561298]
[1728196559626,4.852856,2420.7,2420.6,0.19428751]
[1728196559921,4.852856,2420.7,2420.6,0.39129217]
[1728196560125,4.852856,2420.7,2420.6,0.58557968]
[1728196562224,4.852856,2420.7,2420.6,0.97683586]
[1728196563894,4.852856,2420.7,2420.6,0.58556173]
[1728196565349,4.852856,2420.7,2420.6,0.19428751]
[1728196565632,4.852856,2420.7,2420.6,0.58558402]
[1728196565794,4.852856,2420.7,2420.6,0.39129597]
[1728196565997,4.852856,2420.7,2420.6,0.58559038]
[1728196568858,4.852856,2420.7,2420.6,0.19429441]
[1728196569016,4.852856,2420.7,2420.6,0.39131212]
[1728196569216,4.852856,2420.7,2420.6,0.58560653]
[1728196572121,4.852856,2420.7,2420.6,0.19429441]
[1728196572456,4.852856,2420.7,2420.6,0.58558521]
[1728196575519,4.852856,2420.7,2420.6,0.58562558]
[1728196575957,4.852856,2420.7,2420.6,0.19429441]
[1728196576166,4.852856,2420.7,2420.6,0.39133211]
[1728196576471,4.852856,2420.7,2420.6,0.58562652]
[1728196578960,4.852856,2420.7,2420.6,0.19429441]
[1728196579270,4.852856,2420.7,2420.6,0.39134892]
[1728196579471,4.852856,2420.7,2420.6,0.58564563]
[1728196582270,4.852856,2420.7,2420.6,0.19429671]
[1728196582477,4.852856,2420.7,2420.3,2.0]
[1728196582639,4.11126,2420.7,2420.6,0.19429671]
[1728196582967,3.30504,2420.6,2420.3,2.0]
[1728196585493,3.30504,2420.6,2420.4,0.19439248]
[1728196586382,4.11126,2420.7,2420.4,0.19439248]
[1728196586383,3.3051,2420.5,2420.4,0.19439248]
[1728196619935,7.41621,2420.7,2420.4,0.19439248]
[1728196620134,0.741621,2420.6,2420.4,0.19439248]
[1728196620714,4.046611,2420.6,2420.4,0.19439248]
[1728196630276,0.741621,2420.6,2420.4,0.19439248]
[1728196630481,0.8064,2420.7,2420.4,0.19439248]
[1728196630686,3.30462,2420.9,2420.6,3.59824925]
[1728196630687,0.7557,2420.9,2420.6,3.59824925]
[1728196630987,4.05994,2421.2,2420.8,1.59824925]
[1728196631268,3.30433,2421.1,2420.8,1.59824925]
[1728196631473,3.30433,2421.1,2420.9,0.19414849]
[1728196633479,4.05994,2421.2,2420.9,0.19414849]
[1728196633679,3.30441,2421.0,2420.9,0.19414849]
[1728196634480,3.30441,2421.0,2420.6,4.40104925]
[1728196634643,3.30441,2421.0,2420.9,0.19392762]
[1728196634843,4.04085,2421.0,2420.9,0.19392762]
[1728196635464,3.30482,2420.7,2420.6,2.0]
[1728196635869,4.06622,2420.7,2420.6,2.0]
[1728196644558,0.7614,2420.7,2420.4,0.39062519]
[1728196644792,3.30497,2420.6,2420.5,0.39062519]
[1728196645004,3.30497,2420.6,2420.4,0.39062519]
[1728196645168,3.30497,2420.6,2420.5,0.39062519]
[1728196645369,3.30497,2420.6,2420.4,0.39062519]
[1728196645691,3.30497,2420.6,2420.5,0.58488237]
[1728196645904,3.30497,2420.6,2420.5,0.19425718]
[1728196646189,3.30497,2420.6,2420.5,0.58488237]
[1728196646498,3.30497,2420.6,2420.5,0.19425718]
[1728196646684,3.30497,2420.6,2420.5,0.58488237]
[1728196646884,3.30497,2420.6,2420.5,0.19425718]
[1728196647085,3.30497,2420.6,2420.5,0.58488237]
[1728196647283,3.30497,2420.6,2420.5,0.19425718]
[1728196647795,3.30497,2420.6,2420.3,2.0]
[1728196647998,3.30497,2420.6,2420.5,0.19425718]
[1728196648300,3.30497,2420.6,2420.3,2.0]
[1728196648501,3.30497,2420.6,2420.5,0.19426408]
[1728196649097,3.30497,2420.6,2420.3,2.0]
[1728196649285,3.30497,2420.6,2420.5,0.19426408]
[1728196649799,3.30497,2420.6,2420.3,2.0]
[1728196650005,3.30497,2420.6,2420.4,0.19431197]
[1728196655312,0.7614,2420.7,2420.4,0.19431197]
[1728196655668,3.3047,2420.8,2420.4,0.19431197]
[1728196656206,6.60948,2420.8,2420.4,0.19431197]
[1728196658897,3.30483,2420.7,2420.4,0.19431197]
[1728196676960,4.05813,2420.7,2420.4,0.19431197]
[1728196677671,0.7533,2420.7,2420.4,0.19431197]
[1728196677875,3.30497,2420.6,2420.4,0.19431197]
[1728196679463,3.3051,2420.5,2420.4,0.19431197]
[1728196681042,3.30497,2420.6,2420.4,0.19431197]
[1728196681248,6.61002,2420.6,2420.4,0.19431197]
[1728196681445,3.30497,2420.6,2420.4,0.19431197]
[1728196681873,6.61001,2420.6,2420.4,0.19431197]
[1728196684203,3.30497,2420.6,2420.4,0.19431197]
[1728196687952,3.3051,2420.5,2420.4,0.19431197]
[1728196688463,4.794737,2420.5,2420.4,0.19431197]
[1728196689264,3.30523,2420.4,2420.3,2.0]
[1728196689464,3.30523,2420.4,2420.3,2.19429594]
[1728196695902,3.85523,2420.4,2420.3,0.19429594]
[1728196696070,4.7202267,2420.4,2420.3,0.19429594]
[1728196696315,3.30569,2420.1,2419.9,2.0]
[1728196698683,6.61143,2420.1,2419.9,2.0]
[1728196698897,3.30569,2420.1,2419.9,2.0]
[1728196699094,6.61142,2420.1,2419.9,2.0]
[1728196700088,3.30578,2420.0,2419.9,2.0]
[1728196703689,3.30569,2420.1,2419.9,2.0]
[1728196704331,6.61142,2420.1,2419.9,2.0]
[1728196705212,3.30569,2420.1,2419.9,2.0]
[1728196705416,3.30569,2420.1,2420.0,0.19454777]
[1728196710146,3.30545,2420.3,2420.0,2.59719702]
[1728196710453,3.30516,2420.5,2420.0,2.40264925]
[1728196710637,6.61034,2420.5,2420.2,2.0]
[1728196710823,6.61034,2420.5,2420.3,0.99880407]
[1728196711511,3.30523,2420.4,2420.3,0.99880407]
[1728196711712,3.30523,2420.4,2420.3,0.19440407]
[1728196712020,3.30523,2420.4,2420.2,2.0]
[1728196712343,3.30523,2420.4,2420.3,0.19440407]
[1728196713057,3.30523,2420.4,2420.2,2.0]
[1728196713229,3.30523,2420.4,2420.3,0.19440407]
[1728196713544,3.30523,2420.4,2420.2,2.0]
[1728196713759,3.30523,2420.4,2420.3,0.19440407]
[1728196714107,3.30523,2420.4,2420.2,2.0]
[1728196714365,3.30523,2420.4,2420.3,0.19440407]
[1728196714651,3.30523,2420.4,2420.2,2.0]
[1728196714839,3.30523,2420.4,2420.3,0.19440407]
[1728196715043,3.30523,2420.4,2420.2,2.0]
[1728196715278,3.30523,2420.4,2420.3,0.19440407]
[1728196715460,3.30523,2420.4,2420.2,2.0]
[1728196715660,3.30523,2420.4,2420.3,0.19437417]
[1728196715860,3.30523,2420.4,2420.2,2.0]
[1728196716094,3.30523,2420.4,2420.3,0.19437417]
[1728196716580,3.30523,2420.4,2420.2,2.0]
[1728196716788,3.30523,2420.4,2420.3,0.19444551]
[1728196717081,3.30523,2420.4,2420.2,2.0]
[1728196717287,3.30523,2420.4,2420.3,0.19444551]
[1728196717474,3.30523,2420.4,2420.2,2.0]
[1728196717796,3.30523,2420.4,2420.3,0.19444551]
[1728196718159,3.30523,2420.4,2420.2,2.0]
[1728196718365,3.30523,2420.4,2420.3,0.19444551]
[1728196718570,3.30516,2420.5,2420.3,0.19444551]
[1728196718775,6.61038,2420.5,2420.2,2.0]
[1728196718986,6.61038,2420.5,2420.4,0.19439761]
[1728196719162,6.61038,2420.5,2420.3,0.19444551]
[1728196719496,6.61038,2420.5,2420.4,0.19439761]
[1728196719667,6.61038,2420.5,2420.2,2.0]
[1728196719986,6.61038,2420.5,2420.3,0.19444551]
[1728196720385,6.61038,2420.5,2420.2,2.0]
[1728196720690,6.61035,2420.5,2420.3,0.19444551]
[1728196720866,6.61035,2420.5,2420.2,2.0]
[1728196721068,6.61035,2420.5,2420.3,0.19444551]
[1728196721265,6.61035,2420.5,2420.2,2.0]
[1728196721469,6.61035,2420.5,2420.3,0.19444551]
[1728196721666,6.61035,2420.5,2420.2,2.0]
[1728196721992,6.61035,2420.5,2420.3,0.19444551]
[1728196722353,6.61035,2420.5,2420.2,2.0]
[1728196722696,3.30516,2420.5,2420.3,0.19444551]
[1728196722923,3.30516,2420.5,2420.2,2.0]
[1728196723064,3.30516,2420.5,2420.4,0.19439761]
[1728196723266,3.30516,2420.5,2420.2,2.0]
[1728196723496,3.30516,2420.5,2420.3,0.19444551]
[1728196723801,3.30516,2420.5,2420.2,2.0]
[1728196724097,3.30516,2420.5,2420.3,0.19444551]
[1728196724308,3.30516,2420.5,2420.2,2.0]
[1728196724599,3.30516,2420.5,2420.4,0.19439761]
[1728196724810,3.30516,2420.5,2420.3,0.19444551]
[1728196725008,3.30516,2420.5,2420.4,0.19439761]
[1728196725707,3.30516,2420.5,2420.2,2.0]
[1728196725876,3.30516,2420.5,2420.4,0.19439761]
[1728196726077,3.30516,2420.5,2420.2,2.0]
[1728196726401,3.30516,2420.5,2420.3,0.19444551]
[1728196726903,3.30516,2420.5,2420.4,0.19439761]
[1728196727306,3.30537,2420.3,2420.2,2.0]
[1728196735632,3.30537,2420.3,2420.2,2.19439293]
[1728196735834,3.30516,2420.5,2420.2,2.19439293]
[1728196737135,3.30525,2420.4,2420.2,2.19439293]
[1728196743737,4.07976,2420.5,2420.2,2.19439293]
[1728196748444,3.30524,2420.4,2420.2,2.19439293]
[1728196748765,4.07976,2420.5,2420.2,2.19439293]
[1728196756546,3.30516,2420.5,2420.2,2.19439293]
[1728196756753,3.30516,2420.5,2420.3,0.802]
[1728196757285,3.30516,2420.5,2420.4,0.19431325]
[1728196759395,3.30516,2420.5,2420.2,2.0]
[1728196759583,3.30516,2420.5,2420.4,0.19431325]
[1728196759786,3.30516,2420.5,2420.3,0.19436114]
[1728196759989,3.30516,2420.5,2420.4,0.19431325]
[1728196760350,3.30516,2420.5,2420.2,2.0]
[1728196760463,3.30516,2420.5,2420.4,0.19431325]
[1728196760663,3.30516,2420.5,2420.2,2.0]
[1728196760893,3.30516,2420.5,2420.4,0.19431325]
[1728196761072,3.30516,2420.5,2420.2,2.0]
[1728196761288,3.30516,2420.5,2420.3,0.19436114]
[1728196761507,3.30516,2420.5,2420.2,2.0]
[1728196761675,3.30516,2420.5,2420.3,0.19436114]
[1728196761996,3.30516,2420.5,2420.2,2.0]
[1728196762299,3.30516,2420.5,2420.3,0.19436114]
[1728196762507,3.30516,2420.5,2420.2,2.0]
[1728196762696,3.30516,2420.5,2420.4,0.19431325]
[1728196763008,3.30516,2420.5,2420.2,2.0]
[1728196763302,3.30516,2420.5,2420.4,0.19431325]
[1728196763474,3.30516,2420.5,2420.2,2.0]
[1728196763675,3.30516,2420.5,2420.4,0.19431325]
[1728196763903,3.30516,2420.5,2420.2,2.0]
[1728196764132,3.30516,2420.5,2420.4,0.19431325]
[1728196764279,3.30516,2420.5,2420.3,0.19436114]
[1728196764615,6.61038,2420.5,2420.2,2.0]
[1728196764792,4.13086,2420.5,2420.4,0.19431325]
[1728196764989,4.543946,2420.5,2420.3,0.19436114]
[1728196765218,4.543946,2420.5,2420.4,0.19431325]
[1728196765519,4.543946,2420.5,2420.2,2.0]
[1728196765721,4.13086,2420.5,2420.4,0.19431325]
[1728196765923,4.13086,2420.5,2420.2,2.0]
[1728196766226,4.13086,2420.5,2420.4,0.19431325]
[1728196766391,4.13086,2420.5,2420.3,0.19436114]
[1728196766716,4.13086,2420.5,2420.4,0.19431325]
[1728196766929,4.13086,2420.5,2420.2,2.0]
[1728196767214,4.13086,2420.5,2420.4,0.19431325]
[1728196767428,4.13086,2420.5,2420.3,0.19436114]
[1728196767635,4.13086,2420.5,2420.4,0.19431325]
[1728196767983,4.13086,2420.5,2420.2,2.0]
[1728196768317,4.13086,2420.5,2420.3,0.58162418]
[1728196768503,4.13086,2420.5,2420.4,0.38725614]
[1728196768708,4.13086,2420.5,2420.4,0.58157629]
[1728196769010,4.13086,2420.5,2420.4,0.19432015]
[1728196769204,4.13086,2420.5,2420.4,0.58157629]
[1728196769586,4.13086,2420.5,2420.4,0.58155588]
[1728196769887,4.13086,2420.5,2420.4,0.58155976]
[1728196770229,4.13086,2420.5,2420.4,0.19432015]
[1728196770429,4.13086,2420.5,2420.4,0.58155976]
[1728196770727,4.13086,2420.5,2420.4,0.19432015]
[1728196770926,4.13086,2420.5,2420.4,0.58155976]
[1728196771222,4.13086,2420.5,2420.4,0.19432015]
[1728196771425,4.13086,2420.5,2420.4,0.58155976]
[1728196771632,4.13086,2420.5,2420.4,0.19432015]
[1728196771930,4.13086,2420.5,2420.4,0.58155976]
[1728196772235,4.13086,2420.5,2420.4,0.19432015]
[1728196772531,4.13086,2420.5,2420.4,0.58155976]
[1728196772739,4.13086,2420.5,2420.4,0.19432015]
[1728196773335,4.13086,2420.5,2420.2,2.0]
[1728196773535,4.13086,2420.5,2420.3,0.19436804]
[1728196773838,4.13086,2420.5,2420.2,2.0]
[1728196774002,4.13086,2420.5,2420.4,0.19432015]
[1728196774207,4.13086,2420.5,2420.3,0.19436804]
[1728196774404,4.13086,2420.5,2420.4,0.19432015]
[1728196774726,4.13086,2420.5,2420.2,2.0]
[1728196775033,4.13086,2420.5,2420.3,0.19436804]
[1728196775399,4.13086,2420.5,2420.2,2.0]
[1728196775606,4.13086,2420.5,2420.4,0.19432015]
[1728196775809,4.13086,2420.5,2420.3,0.19436804]
[1728196776136,4.13086,2420.5,2420.4,0.19432015]
[1728196776335,4.13086,2420.5,2420.2,2.0]
[1728196776501,4.13086,2420.5,2420.3,0.19436804]
[1728196776701,4.13086,2420.5,2420.2,2.0]
[1728196776903,4.13086,2420.5,2420.3,0.19436804]
[1728196777221,4.13086,2420.5,2420.2,2.0]
[1728196777418,4.13086,2420.5,2420.4,0.19432015]
[1728196777742,4.13086,2420.5,2420.4,0.19432245]
[1728196777933,4.13086,2420.5,2420.2,2.0]
[1728196778123,4.13086,2420.5,2420.3,0.19437034]
[1728196778322,4.13086,2420.5,2420.2,2.0]
[1728196778527,4.13086,2420.5,2420.3,0.19437034]
[1728196778744,4.13086,2420.5,2420.2,2.0]
[1728196778907,4.13086,2420.5,2420.4,0.19432245]
[1728196779129,4.13086,2420.5,2420.2,2.0]
[1728196779449,4.13086,2420.5,2420.3,0.19437034]
[1728196780006,4.13086,2420.5,2420.2,2.0]
[1728196780203,4.13086,2420.5,2420.4,0.19432245]
[1728196780721,4.13086,2420.5,2420.2,2.0]
[1728196781051,4.13086,2420.5,2420.3,0.19437034]
[1728196781415,4.13086,2420.5,2420.2,2.0]
[1728196781626,4.13086,2420.5,2420.4,0.19432245]
[1728196781838,4.13086,2420.5,2420.3,0.19437034]
[1728196782015,4.13086,2420.5,2420.4,0.19432245]
[1728196782429,4.13086,2420.5,2420.2,2.0]
[1728196782648,4.13086,2420.5,2420.4,0.19432245]
[1728196782807,4.13086,2420.5,2420.3,0.19437034]
[1728196783021,4.13086,2420.5,2420.4,0.19432245]
[1728196783225,4.13086,2420.5,2420.2,2.0]
[1728196783565,4.13086,2420.5,2420.3,0.19437034]
[1728196784080,4.13086,2420.5,2420.4,0.19432245]
[1728196784214,4.13086,2420.5,2420.2,2.0]
[1728196784420,4.13086,2420.5,2420.3,0.19437034]
[1728196784619,4.13086,2420.5,2420.2,2.0]
[1728196784833,4.13086,2420.5,2420.3,0.19437034]
[1728196785036,4.13086,2420.5,2420.2,2.0]
[1728196785324,4.13086,2420.5,2420.3,0.19437034]
[1728196785547,4.13086,2420.5,2420.2,2.0]
[1728196785753,4.13086,2420.5,2420.3,0.19437034]
[1728196786061,4.13086,2420.5,2420.2,2.0]
[1728196786258,4.13086,2420.5,2420.3,0.19437034]
[1728196786567,4.13086,2420.5,2420.2,2.0]
[1728196786715,4.13086,2420.5,2420.4,0.19432245]
[1728196786915,4.13086,2420.5,2420.2,2.0]
[1728196787119,4.13086,2420.5,2420.3,0.19437034]
[1728196787466,4.13086,2420.5,2420.2,2.0]
[1728196787636,4.13086,2420.5,2420.4,0.19432245]
[1728196788037,4.13086,2420.5,2420.2,2.0]
[1728196788236,4.13086,2420.5,2420.3,0.19437034]
[1728196788435,4.13086,2420.5,2420.2,2.0]
[1728196788638,4.13086,2420.5,2420.3,0.19437034]
[1728196788852,4.13086,2420.5,2420.2,2.0]
[1728196789037,4.13086,2420.5,2420.3,0.19437034]
[1728196789250,4.13086,2420.5,2420.2,2.0]
[1728196789573,4.13086,2420.5,2420.3,0.19437034]
[1728196789873,4.13086,2420.5,2420.2,2.0]
[1728196790166,4.13086,2420.5,2420.3,0.19437034]
[1728196790481,4.13086,2420.5,2420.2,2.0]
[1728196790688,4.13086,2420.5,2420.3,0.19437034]
[1728196790983,4.13086,2420.5,2420.2,2.0]
[1728196791174,4.13086,2420.5,2420.4,0.19432245]
[1728196791377,4.13086,2420.5,2420.3,0.19437034]
[1728196791692,4.13086,2420.5,2420.4,0.19432245]
[1728196791871,4.13086,2420.5,2420.2,2.0]
[1728196792078,4.13086,2420.5,2420.3,0.19437034]
[1728196792280,4.13086,2420.5,2420.2,2.0]
[1728196792451,4.13086,2420.5,2420.3,0.19437034]
[1728196792652,4.13086,2420.5,2420.2,2.0]
[1728196792847,4.13086,2420.5,2420.3,0.19437494]
[1728196793078,4.13086,2420.5,2420.2,2.0]
[1728196793284,4.13086,2420.5,2420.3,0.19437494]
[1728196793477,4.13086,2420.5,2420.2,2.0]
[1728196793791,4.13086,2420.5,2420.3,0.19437494]
[1728196794096,4.13086,2420.5,2420.2,2.0]
[1728196794303,4.13086,2420.5,2420.3,0.19437494]
[1728196794601,4.13086,2420.5,2420.2,2.0]
[1728196794808,4.13086,2420.5,2420.4,0.19432705]
[1728196794990,4.13086,2420.5,2420.3,0.19437494]
[1728196795298,4.13086,2420.5,2420.4,0.19432705]
[1728196795495,4.13086,2420.5,2420.2,2.0]
[1728196795698,4.13086,2420.5,2420.3,0.19437494]
[1728196795898,4.13086,2420.5,2420.2,2.0]
[1728196796063,4.13086,2420.5,2420.3,0.19437494]
[1728196796267,4.13086,2420.5,2420.2,2.0]
[1728196796593,4.13086,2420.5,2420.3,0.19437494]
[1728196796811,3.30523,2420.4,2420.3,0.19437494]
[1728196796970,3.30537,2420.3,2419.9,2.0]
[1728196797177,3.30565,2420.1,2419.9,2.0]
[1728196797397,3.30565,2420.1,2420.0,0.19454165]
[1728196799090,3.30565,2420.1,2420.0,0.19934165]
[1728196800162,4.61095,2420.1,2420.0,0.19934165]
[1728196807365,4.61095,2420.1,2420.0,0.0048]
[1728196807677,5.402608,2420.1,2420.0,0.0048]
[1728196879937,3.30619,2419.7,2419.6,2.7839]
[1728196880262,3.30619,2419.7,2419.6,3.04495178]
[1728196881641,3.30607,2419.8,2419.6,3.04495178]
[1728196881846,6.6122,2419.8,2419.7,0.7685]
[1728196882169,6.6122,2419.8,2419.7,1.02950086]
[1728196883355,6.6122,2419.8,2419.7,1.03430086]
[1728196883735,3.30607,2419.8,2419.7,1.03430086]
[1728196883944,3.30559,2420.2,2419.8,0.8095]
[1728196884161,3.30559,2420.2,2420.0,0.8143]
[1728196884587,3.30559,2420.2,2420.1,1.07027449]
[1728196884958,3.30531,2420.4,2420.3,0.8095]
[1728196885385,3.30531,2420.4,2420.3,1.07497271]
[1728196891809,3.30531,2420.4,2420.3,1.07017271]
[1728196911878,3.30531,2420.4,2420.3,0.26067271]
[1728196912307,3.30537,2420.3,2420.2,2.0048]
[1728196915496,3.30537,2420.3,2420.2,2.2653575]
[1728196916013,3.30537,2420.3,2420.2,2.2605575]
[1728196920220,6.61067,2420.4,2420.2,2.2605575]
[1728196920392,3.30537,2420.3,2420.2,0.2605575]
[1728196920716,3.30552,2420.2,2419.9,2.7792]
[1728196921080,6.61111,2420.2,2419.9,2.7792]
[1728196921280,3.30565,2420.1,2419.9,2.7792]
[1728196921480,6.61114,2420.2,2419.9,2.7792]
[1728196921782,3.30552,2420.2,2419.9,2.7792]
[1728196923389,3.30552,2420.2,2420.0,0.0048]
[1728196925882,4.12081,2420.4,2420.0,0.0048]
[1728196926016,3.30549,2420.3,2420.0,0.0048]
[1728196928847,3.30531,2420.4,2420.1,0.7792]
[1728196929947,6.61063,2420.4,2420.1,0.7792]
[1728196930456,6.61063,2420.4,2420.2,0.26043006]
[1728196932595,3.30537,2420.3,2420.2,0.26043006]
[1728196935264,3.30553,2420.2,2420.0,0.0048]
[1728196935466,3.30553,2420.2,2420.1,0.26047185]
[1728196944590,3.30539,2420.3,2420.1,0.26047185]
[1728196944790,3.715491,2420.3,2420.1,0.26047185]
[1728196945110,3.30539,2420.3,2420.1,0.26047185]
[1728196946117,4.65121,2420.2,2420.1,0.26047185]
[1728196946579,3.30586,2420.0,2419.8,0.0048]
[1728196948597,6.61174,2420.0,2419.8,0.0048]
[1728196948926,3.30586,2420.0,2419.8,0.0048]
[1728196949291,6.61172,2420.0,2419.8,0.0048]
[1728196950501,3.30586,2420.0,2419.8,0.0048]
[1728196950910,6.61172,2420.0,2419.8,0.0048]
[1728196952002,3.30586,2420.0,2419.8,0.0048]
[1728196956336,6.61173,2420.0,2419.8,0.0048]
[1728196956538,3.30586,2420.0,2419.8,0.0048]
[1728196957540,6.61172,2420.0,2419.8,0.0048]
[1728196960473,6.61172,2420.0,2419.9,0.2606692]
[1728196967747,7.407462,2420.0,2419.9,0.2606692]
[1728196967967,3.30616,2419.8,2419.6,2.0048]
[1728196974682,3.30593,2419.9,2419.6,2.0048]
[1728196974880,3.30619,2419.7,2419.6,2.0048]
[1728196975542,3.30619,2419.7,2419.6,2.26561512]
[1728196978781,4.07269,2419.7,2419.6,2.26081512]
[1728196978979,4.403309,2419.7,2419.6,2.26081512]
[1728196983563,4.07269,2419.7,2419.6,2.26081512]
[1728196985796,3.30619,2419.7,2419.6,2.26081512]
[1728196988878,6.61224,2419.8,2419.6,3.09171512]
[1728196989375,3.30619,2419.7,2419.6,3.09171512]
[1728196990023,3.30606,2419.8,2419.6,3.09171512]
[1728196990203,6.61224,2419.8,2419.6,3.09171512]
[1728196990410,3.30606,2419.8,2419.6,3.09171512]
[1728196991119,6.61219,2419.8,2419.6,3.09171512]